bitfinex/quotes_ETHUSD_20260108
["timestamp","ask_amount","ask_price","bid_price","bid_amount"]
[1767859596089,0.973603,3127.6,3126.8,0.002]
[1767859596466,0.973603,3127.4,3126.8,0.002]
[1767859596671,0.973603,3127.3,3126.8,0.002]
[1767859598398,0.973603,3127.1,3127.0,0.002]
[1767859598618,0.973603,3127.1,3126.8,0.002]
[1767859598777,0.973603,3127.1,3126.5,0.002]
[1767859599878,0.973603,3127.8,3126.5,0.97399679]
[1767859600080,1.39066662,3127.7,3126.5,0.97399679]
[1767859600280,0.973603,3127.6,3126.5,0.97399679]
[1767859600595,4.17104504,3127.5,3126.6,0.97199679]
[1767859600897,0.973603,3127.4,3126.6,0.97199679]
[1767859603014,0.41706362,3127.7,3126.7,0.97199679]
[1767859603306,4.17064477,3127.9,3126.9,0.97199679]
[1767859603682,0.973603,3127.9,3126.9,0.97199679]
[1767859604411,0.973603,3128.3,3126.9,0.97199679]
[1767859604707,0.973603,3128.3,3127.1,0.97199679]
[1767859604912,0.973603,3128.3,3127.3,0.97199679]
[1767859605199,0.973603,3128.2,3127.3,0.97199679]
[1767859606406,0.973603,3128.7,3127.3,0.97199679]
[1767859606593,0.973603,3128.3,3127.3,0.97199679]
[1767859606780,0.973603,3128.3,3127.3,4.16962784]
[1767859606986,0.973603,3128.3,3127.4,1.78241223]
[1767859608802,0.973603,3128.2,3127.4,4.97991669]
[1767859609303,0.973603,3128.2,3127.4,1.78241223]
[1767859609715,0.973603,3128.2,3127.4,4.97995651]
[1767859609903,0.973603,3128.8,3127.5,0.97199679]
[1767859610098,0.973603,3128.7,3127.6,0.97199679]
[1767859610277,0.001,3127.9,3127.6,0.97199679]
[1767859612908,0.001,3127.9,3127.6,4.16932526]
[1767859613779,0.001,3127.9,3127.6,0.97199679]
[1767859614217,0.001,3127.9,3127.3,0.97199679]
[1767859614412,0.001,3127.9,3127.5,0.97199679]
[1767859614581,0.001,3127.9,3127.6,0.97199679]
[1767859615098,0.001,3127.9,3127.6,4.16932553]
[1767859615289,0.001,3127.9,3127.6,0.97199679]
[1767859616511,0.001,3127.9,3127.4,0.79497161]
[1767859616881,0.001,3127.9,3127.4,1.7669684]
[1767859617438,0.001,3127.9,3127.4,0.97199679]
[1767859617587,0.974603,3127.9,3127.2,3.78]
[1767859618296,0.001,3127.9,3127.3,0.97199679]
[1767859618615,0.001,3127.9,3127.5,0.97199679]
[1767859618984,0.973603,3128.5,3127.6,0.97199679]
[1767859619182,0.973603,3128.5,3127.7,0.97199679]
[1767859619383,4.1700249,3128.5,3127.7,0.97199679]
[1767859619805,4.1700249,3128.5,3127.8,0.97199679]
[1767859619806,0.973603,3128.5,3127.8,0.97199679]
[1767859620218,0.973603,3128.4,3127.6,3.93399807]
[1767859620384,0.973603,3128.4,3127.6,0.7367012]
[1767859620911,0.973603,3128.4,3127.7,3.19723643]
[1767859621098,0.973603,3128.4,3127.7,3.91037413]
[1767859621408,0.973603,3128.4,3127.7,3.91036008]
[1767859622105,0.973603,3128.4,3127.7,0.7131377]
[1767859622309,0.001,3128.2,3127.7,0.7131377]
[1767859622502,0.001,3128.2,3127.5,0.97199679]
[1767859622702,0.93656984,3128.2,3127.5,0.97199679]
[1767859622900,0.93656984,3128.2,3127.5,4.16943385]
[1767859623191,0.93656984,3128.2,3127.3,3.78]
[1767859623397,0.93656984,3128.2,3127.4,3.19753172]
[1767859623714,1.02001147,3127.8,3127.3,3.78]
[1767859624015,0.001,3128.2,3127.3,3.78]
[1767859624016,1.02001147,3127.6,3127.3,3.78]
[1767859624992,1.02001147,3127.6,3127.3,6.97764216]
[1767859625521,1.02001147,3127.6,3127.1,0.002]
[1767859626105,1.02001147,3128.1,3127.1,0.99259339]
[1767859626310,0.001,3128.2,3127.5,0.99059339]
[1767859627588,0.001,3128.2,3127.6,4.1879332]
[1767859628925,0.001,3128.2,3127.6,0.99059339]
[1767859629824,0.001,3128.2,3127.7,0.99059339]
[1767859630430,0.001,3128.2,3127.4,3.19745441]
[1767859630594,0.001,3128.2,3127.5,1.31033883]
[1767859631620,0.001,3128.2,3127.5,4.50774474]
[1767859632089,0.001,3128.2,3127.6,0.99059339]
[1767859633228,0.001,3128.2,3127.8,0.99059339]
[1767859634430,1.02001147,3128.7,3127.7,6.39447516]
[1767859634631,1.02001147,3128.7,3127.8,0.63944752]
[1767859635159,1.02001147,3128.7,3127.8,3.83652203]
[1767859635295,1.02001147,3128.6,3127.8,3.83652203]
[1767859635630,1.02001147,3128.6,3127.9,0.99059339]
[1767859636800,5.05595822,3129.0,3127.9,0.99059339]
[1767859637000,1.02001147,3128.9,3128.0,4.18752433]
[1767859637224,1.02001147,3128.9,3128.0,7.38445527]
[1767859637395,1.02001147,3128.9,3128.0,4.18752433]
[1767859638535,1.02001147,3128.9,3128.1,0.99059339]
[1767859638705,0.001,3129.0,3128.1,0.99059339]
[1767859639320,0.001,3129.0,3128.3,0.99059339]
[1767859641251,0.001,3129.0,3128.4,0.99059339]
[1767859642044,1.02101147,3129.0,3128.3,3.19655911]
[1767859642230,1.02101147,3129.0,3128.3,3.83589539]
[1767859642439,1.02101147,3129.0,3127.4,0.99059339]
[1767859642723,6.14472183,3128.8,3127.5,3.19739627]
[1767859642924,6.98372183,3128.8,3127.5,3.19739627]
[1767859643127,0.69837218,3128.7,3127.5,3.19739627]
[1767859643333,6.39263568,3128.6,3127.4,0.99059339]
[1767859643906,3.19631784,3128.6,3127.5,0.99059339]
[1767859644554,6.39263568,3128.6,3127.5,0.99059339]
[1767859644723,3.19631784,3128.6,3127.5,0.99059339]
[1767859644909,0.70909269,3128.5,3127.5,0.99059339]
[1767859645408,3.90661213,3128.5,3127.6,0.99059339]
[1767859646018,0.71009269,3128.5,3127.6,0.99059339]
[1767859646546,0.001,3128.5,3127.6,0.99059339]
[1767859648783,0.03735579,3128.5,3127.6,0.99059339]
[1767859650046,3.19652218,3128.4,3127.6,0.99059339]
[1767859650739,3.23382297,3128.5,3127.6,0.99059339]
[1767859651638,3.19742221,3128.5,3127.7,0.99059339]
[1767859652062,0.39984075,3128.5,3127.7,0.99059339]
[1767859653031,0.39984075,3128.5,3127.1,3.19981864]
[1767859653032,0.12904921,3128.4,3127.2,0.97080758]
[1767859653233,0.12904921,3128.0,3126.9,0.97080758]
[1767859653451,0.12904921,3127.8,3126.9,0.97080758]
[1767859654262,6.39447516,3127.7,3126.9,0.97080758]
[1767859654441,0.65235244,3127.6,3126.9,0.97080758]
[1767859656172,6.39386188,3128.0,3126.9,0.97080758]
[1767859656354,9.59079282,3128.0,3126.9,0.97080758]
[1767859657165,9.59079282,3128.0,3127.2,0.002]
[1767859657349,6.39386188,3128.0,3127.2,0.002]
[1767859657763,9.59079282,3128.0,3127.2,0.002]
[1767859657947,1.67391678,3127.9,3127.2,0.002]
[1767859658345,6.39427072,3127.8,3127.2,0.97280758]
[1767859659153,3.19713536,3127.8,3127.2,0.97280758]
[1767859659362,6.39304436,3128.4,3127.2,0.97280758]
[1767859660082,3.19652218,3128.4,3127.2,0.97280758]
[1767859660275,0.39984075,3128.5,3127.4,0.97080758]
[1767859660276,0.001,3128.5,3127.4,0.97080758]
[1767859660471,0.001,3128.5,3127.6,0.97080758]
[1767859664008,0.31507196,3128.4,3127.3,0.97080758]
[1767859664497,6.39324872,3128.3,3127.3,0.97080758]
[1767859668701,6.39304436,3128.4,3127.3,0.97080758]
[1767859668902,9.58956654,3128.4,3127.3,0.97080758]
[1767859669305,0.001,3128.0,3127.3,0.97080758]
[1767859677614,0.52007857,3127.9,3127.2,0.97280758]
[1767859678107,0.68835533,3128.0,3127.2,0.97280758]
[1767859678313,3.19703315,3127.9,3127.2,0.97280758]
[1767859678513,6.3940663,3127.9,3127.2,0.97280758]
[1767859680416,0.54675139,3127.8,3126.9,0.97280758]
[1767859680584,0.55985847,3127.7,3126.9,0.97280758]
[1767859681185,3.19703315,3127.9,3127.0,3.19788692]
[1767859681409,3.19703315,3127.9,3127.1,0.97080758]
[1767859681621,0.001,3127.7,3127.2,0.97080758]
[1767859681807,0.001,3127.7,3127.4,0.97080758]
[1767859681994,0.001,3128.0,3127.4,0.97080758]
[1767859683093,0.001,3128.0,3127.5,1.24676208]
[1767859685004,0.001,3128.0,3127.6,1.27170677]
[1767859686727,0.001,3128.0,3127.3,3.19762917]
[1767859686728,0.001,3128.0,3127.4,1.27170677]
[1767859687341,0.001,3128.0,3127.5,1.27170677]
[1767859689334,0.001,3128.0,3127.6,1.27170677]
[1767859692950,0.001,3128.5,3128.0,1.27170677]
[1767859694323,0.001,3128.5,3128.1,1.27170677]
[1767859696007,0.001,3128.5,3127.7,1.27170677]
[1767859696206,0.001,3128.5,3127.9,1.27170677]
[1767859696405,0.001,3128.5,3127.9,4.46870566]
[1767859697440,0.001,3128.5,3127.9,7.66573881]
[1767859697608,0.001,3128.5,3128.0,1.27170677]
[1767859698210,0.001,3128.5,3127.9,6.39403204]
[1767859698211,0.001,3128.5,3128.2,1.27170677]
[1767859698415,0.001,3128.5,3128.3,1.71856032]
[1767859698713,0.001,3129.0,3128.4,1.27170677]
[1767859700313,0.001,3129.0,3128.5,1.27170677]
[1767859705057,0.001,3128.7,3128.5,1.27170677]
[1767859706029,0.001,3128.7,3128.3,1.27170677]
[1767859706442,0.001,3128.7,3128.1,1.27170677]
[1767859706648,0.001,3128.7,3128.2,1.27170677]
[1767859710053,0.90041252,3128.7,3127.7,3.19720419]
[1767859710226,0.90041252,3128.7,3127.6,3.19727519]
[1767859711331,0.90041252,3128.7,3127.7,3.19721804]
[1767859711856,0.91742134,3128.5,3127.6,3.19733981]
[1767859712059,0.91742134,3128.5,3127.7,1.01747499]
[1767859713433,0.91742134,3128.5,3127.7,4.21462852]
[1767859713955,8.20967165,3128.7,3127.8,1.35886031]
[1767859714754,9.16188606,3128.7,3127.8,1.35886031]
[1767859714955,0.95321441,3128.7,3127.8,1.35886031]
[1767859715158,0.95321441,3128.7,3127.9,1.35886031]
[1767859716065,4.14949855,3128.7,3127.9,1.35886031]
[1767859716254,0.95321441,3128.7,3127.9,1.35886031]
[1767859716745,0.001,3128.7,3128.1,1.36086031]
[1767859727244,0.001,3128.7,3128.3,5.01257884]
[1767859727449,0.001,3129.0,3128.7,1.35886031]
[1767859728069,0.001,3129.0,3128.4,0.63714392]
[1767859728070,0.001,3129.0,3128.5,1.35886031]
[1767859729252,0.001,3129.0,3128.6,1.35886031]
[1767859731984,0.001,3129.0,3128.4,1.36086031]
[1767859732378,0.001,3129.0,3128.5,1.35886031]
[1767859732578,0.001,3129.0,3128.6,0.45573655]
[1767859732767,0.001,3129.0,3128.6,1.81459686]
[1767859733478,0.001,3129.0,3128.6,0.45573655]
[1767859733875,0.001,3129.0,3128.6,1.81459686]
[1767859734688,0.001,3129.0,3128.6,1.35886031]
[1767859735963,5.01357884,3129.0,3128.6,1.35886031]
[1767859736795,6.13089888,3129.0,3128.4,1.36086031]
[1767859737194,1.11732004,3128.9,3128.4,0.002]
[1767859738267,6.13645242,3128.8,3128.4,0.002]
[1767859738763,5.01257884,3128.8,3128.4,0.002]
[1767859739086,5.01257884,3128.8,3128.4,0.45775847]
[1767859739595,6.14933454,3128.8,3128.4,0.45775847]
[1767859739782,6.14933454,3128.8,3128.1,0.002]
[1767859739783,1.1367557,3128.5,3128.1,0.002]
[1767859739967,6.14933454,3128.4,3128.1,0.002]
[1767859740795,1.143086,3128.3,3128.1,0.002]
[1767859741796,1.14934359,3128.5,3128.1,0.002]
[1767859741992,5.01257884,3128.6,3128.1,1.36086031]
[1767859743398,5.01257884,3128.4,3128.1,1.36086031]
[1767859743694,5.01257884,3128.4,3128.0,0.002]
[1767859746488,5.01257884,3128.4,3127.5,3.19744083]
[1767859746489,6.47789914,3128.2,3127.5,1.58567236]
[1767859746691,5.01257884,3128.0,3127.5,1.58567236]
[1767859747302,5.01257884,3128.1,3127.6,1.58567236]
[1767859749281,5.01257884,3128.1,3127.6,4.78298959]
[1767859750102,5.01257884,3128.3,3127.7,1.58567236]
[1767859750295,1.4653203,3128.4,3127.8,1.58567236]
[1767859750498,5.01457884,3128.7,3127.8,1.58567236]
[1767859750999,6.47989914,3128.7,3127.8,1.58567236]
[1767859752401,1.4653203,3128.6,3127.8,1.58567236]
[1767859752602,1.4653203,3128.6,3127.9,1.58567236]
[1767859752984,5.01257884,3128.5,3127.9,1.58567236]
[1767859753306,5.01257884,3128.3,3127.9,1.58567236]
[1767859754406,6.47789914,3128.3,3127.6,4.78298872]
[1767859754602,5.01257884,3128.3,3127.7,1.58567236]
[1767859755474,1.4653203,3128.0,3127.4,3.19752791]
[1767859755774,1.4653203,3127.8,3127.3,6.97757761]
[1767859755998,5.01257884,3127.9,3127.4,4.21505694]
[1767859756203,6.47789914,3128.1,3127.4,2.60320305]
[1767859756520,5.01257884,3128.1,3127.5,1.58567236]
[1767859756676,6.47789914,3128.3,3127.5,1.58567236]
[1767859758407,6.47789914,3128.3,3127.6,1.58567236]
[1767859758606,6.47789914,3128.3,3127.6,2.48547217]
[1767859758905,0.001,3128.4,3127.7,1.58567236]
[1767859759103,1.4663203,3128.4,3127.7,1.58567236]
[1767859759622,6.47889914,3128.4,3127.7,1.58567236]
[1767859761816,6.47889914,3128.4,3127.7,4.78288118]
[1767859763430,0.001,3128.4,3127.8,1.58567236]
[1767859764020,1.4663203,3128.4,3127.8,1.58567236]
[1767859764593,0.001,3128.4,3127.8,1.58567236]
[1767859764793,0.001,3128.1,3127.9,3.19703315]
[1767859765093,1.4663203,3128.4,3127.9,0.88679154]
[1767859765501,1.4663203,3128.4,3127.8,3.19708471]
[1767859766921,0.001,3128.4,3127.8,1.58567236]
[1767859767114,0.001,3128.4,3127.9,6.5982512]
[1767859767419,0.001,3128.4,3127.9,1.58567236]
[1767859768599,0.002,3128.7,3128.1,1.58567236]
[1767859769001,1.4673203,3128.7,3128.1,4.78245005]
[1767859769202,1.4673203,3128.7,3128.2,0.478245]
[1767859771541,1.4673203,3128.7,3128.0,3.19691104]
[1767859771916,1.4673203,3128.7,3128.1,3.19681775]
[1767859772236,1.4673203,3128.7,3128.2,1.40223641]
[1767859772237,0.002,3128.7,3128.2,1.40223641]
[1767859773904,1.51295353,3128.7,3128.0,1.40223641]
[1767859774100,1.51295353,3128.7,3128.0,4.59915678]
[1767859774300,1.51295353,3128.7,3128.1,0.45991568]
[1767859774522,1.51295353,3128.7,3128.1,1.86215209]
[1767859776530,0.001,3128.4,3128.1,1.86215209]
[1767859779231,5.01357884,3128.4,3127.6,1.40223641]
[1767859779623,6.52453237,3128.4,3127.6,1.40223641]
[1767859780026,6.52353237,3128.2,3127.3,4.59985885]
[1767859780227,1.51095353,3128.1,3127.3,4.59985885]
[1767859780425,6.52353237,3127.8,3127.1,1.40223641]
[1767859780625,1.51095353,3127.7,3127.1,3.19778543]
[1767859780828,1.51095353,3127.7,3126.9,0.002]
[1767859782414,5.01257884,3128.0,3126.9,0.002]
[1767859782415,5.01257884,3128.0,3126.9,1.40423641]
[1767859782614,1.51095353,3127.9,3126.9,1.40423641]
[1767859782848,1.51095353,3127.9,3127.1,4.60008687]
[1767859785942,5.01257884,3128.0,3127.2,1.40223641]
[1767859786516,1.51095353,3128.1,3127.2,1.40223641]
[1767859786818,3.19666956,3128.3,3127.2,1.40223641]
[1767859787114,4.70762309,3128.3,3127.2,1.40223641]
[1767859787324,0.47086231,3128.2,3127.2,1.40223641]
[1767859787520,1.98181584,3128.2,3127.2,1.40223641]
[1767859788024,1.51095353,3128.1,3127.4,1.40223641]
[1767859788214,1.51095353,3128.1,3127.4,0.002]
[1767859790436,0.001,3128.4,3127.5,1.40223641]
[1767859790638,0.002,3128.7,3128.4,1.40223641]
[1767859791137,0.001,3129.0,3128.4,1.40223641]
[1767859792619,0.001,3129.0,3128.6,1.40223641]
[1767859794640,0.001,3129.0,3128.7,4.59845209]
[1767859795050,0.001,3129.0,3128.7,3.19621568]
[1767859798366,0.001,3129.0,3128.6,3.19626659]
[1767859798549,0.001,3129.0,3128.6,3.97574895]
[1767859798853,0.001,3129.0,3128.6,7.17206679]
[1767859799366,0.001,3129.0,3128.6,3.97574895]
[1767859799563,0.001,3129.0,3128.4,3.19646179]
[1767859799564,1.51195353,3129.0,3128.4,3.19646179]
[1767859800064,0.002,3128.7,3128.5,3.19639334]
[1767859800244,0.002,3128.7,3128.4,3.19650157]
[1767859800427,0.002,3128.7,3128.3,6.39324872]
[1767859800771,0.002,3128.7,3128.3,7.25669723]
[1767859801134,0.002,3128.7,3128.3,8.65893364]
[1767859801763,0.002,3128.7,3128.4,1.40223641]
[1767859801931,0.001,3129.0,3128.4,1.40223641]
[1767859802135,1.51095353,3129.7,3129.0,1.40046976]
[1767859802747,1.51095353,3129.7,3129.1,6.3916142]
[1767859803054,1.51095353,3129.7,3129.1,3.1958071]
[1767859803451,1.51095353,3129.7,3129.0,3.19586463]
[1767859804131,1.42290614,3129.6,3128.8,1.40046976]
[1767859804466,1.42290614,3129.4,3128.7,3.19619527]
[1767859804666,1.42290614,3129.4,3128.7,3.19614544]
[1767859804864,1.42290614,3129.4,3128.7,1.34359744]
[1767859805081,1.42290614,3129.6,3128.7,1.34359744]
[1767859807667,1.42290614,3129.6,3128.8,3.19611352]
[1767859807896,1.42290614,3129.5,3128.8,3.19611352]
[1767859808866,1.42290614,3129.5,3128.7,4.53979174]
[1767859808867,1.42290614,3129.3,3128.4,3.78]
[1767859809070,1.42290614,3129.3,3128.4,6.97649642]
[1767859809467,1.42290614,3128.7,3128.1,0.839]
[1767859809668,10.54919878,3129.6,3127.7,1.34359744]
[1767859809669,6.4379255,3128.6,3127.7,1.34359744]
[1767859809871,0.64379255,3128.6,3127.9,4.54060446]
[1767859810173,1.42290614,3128.7,3127.9,4.54060446]
[1767859811374,1.42290614,3128.7,3128.0,3.19691749]
[1767859811875,1.42290614,3128.7,3127.9,4.54060972]
[1767859813978,1.42290614,3128.7,3127.9,1.34359744]
[1767859814284,1.42290614,3128.6,3127.9,1.34359744]
[1767859814472,1.88481889,3128.5,3127.7,4.54077927]
[1767859814672,1.42290614,3128.3,3127.4,0.841]
[1767859814982,1.42290614,3128.3,3127.4,4.03850286]
[1767859815280,1.42290614,3128.2,3127.4,4.03848221]
[1767859815583,1.42290614,3128.2,3127.4,0.841]
[1767859815877,1.88486088,3128.1,3127.4,4.03852985]
[1767859816282,1.88486088,3128.1,3127.4,5.38212729]
[1767859816681,0.46191275,3128.5,3127.5,1.34359744]
[1767859816887,1.42290614,3128.8,3127.5,1.34359744]
[1767859817270,1.42290614,3129.0,3127.5,1.34359744]
[1767859818082,1.42290614,3128.9,3127.7,1.34359744]
[1767859818273,1.88478813,3128.8,3127.7,1.34359744]
[1767859818984,1.42290614,3128.7,3127.7,1.34359744]
[1767859819488,1.42290614,3128.7,3127.9,1.34359744]
[1767859819798,1.42290614,3128.5,3127.4,0.841]
[1767859819957,1.42290614,3128.2,3127.4,0.841]
[1767859820153,1.42290614,3128.2,3127.4,4.03848991]
[1767859820366,1.42290614,3128.2,3127.5,3.19742975]
[1767859820577,1.42290614,3128.2,3127.4,4.03852543]
[1767859820974,1.42290614,3128.2,3127.5,3.19743447]
[1767859821490,2.13107795,3128.2,3127.4,5.38212553]
[1767859824155,2.13107795,3128.2,3128.0,0.001]
[1767859824490,2.13107795,3128.2,3127.4,5.38212553]
[1767859824491,1.42290614,3128.1,3127.4,5.38212553]
[1767859824991,1.42290614,3128.1,3127.4,0.841]
[1767859826796,1.42290614,3128.0,3127.4,0.002]
[1767859827003,1.42290614,3127.8,3127.0,0.002]
[1767859827276,1.42090614,3127.8,3127.0,0.002]
[1767859827678,1.42090614,3127.8,3127.0,3.19995228]
[1767859828659,1.42090614,3127.8,3127.0,0.002]
[1767859828874,1.42290614,3127.6,3127.0,0.002]
[1767859830093,1.42290614,3127.6,3126.8,0.002]
[1767859830692,1.42290614,3127.5,3126.8,0.002]
[1767859833297,1.32415757,3127.4,3126.8,0.002]
[1767859835200,1.32415757,3127.3,3126.5,0.002]
[1767859835511,1.32415757,3127.1,3126.5,0.002]
[1767859836595,1.32415757,3127.1,3126.8,0.002]
[1767859837809,1.32415757,3127.6,3126.8,1.42361337]
[1767859838724,1.32415757,3127.5,3126.8,1.42361337]
[1767859839017,0.45215262,3127.4,3126.8,1.42361337]
[1767859839325,3.19736861,3127.6,3126.8,7.81992604]
[1767859839326,1.32415757,3127.6,3126.8,7.81992604]
[1767859839626,6.43051931,3128.5,3126.8,7.81992604]
[1767859839627,4.03561234,3128.4,3126.9,1.42161337]
[1767859839848,0.85262112,3128.3,3126.9,1.42161337]
[1767859840130,0.85262112,3128.3,3127.1,1.42161337]
[1767859840706,0.85262112,3128.3,3127.3,1.42161337]
[1767859841186,0.85049795,3128.2,3127.3,1.42161337]
[1767859842687,3.19663257,3128.3,3127.3,1.42161337]
[1767859842688,4.04315324,3128.1,3127.3,1.42161337]
[1767859843104,4.04315324,3128.1,3127.0,2.52342176]
[1767859843105,0.8463245,3128.0,3127.0,2.52342176]
[1767859843311,0.8463245,3128.0,3127.0,1.42161337]
[1767859843727,0.8463245,3128.0,3127.2,3.19774548]
[1767859843923,0.8463245,3128.0,3127.1,3.19781575]
[1767859844133,0.8463245,3128.0,3126.8,1.42361337]
[1767859844433,0.84427365,3127.8,3126.8,3.20014507]
[1767859844631,0.84224636,3127.6,3126.9,3.1980425]
[1767859844805,0.84224636,3127.6,3126.8,3.20015786]
[1767859844994,0.84224636,3127.6,3126.8,0.002]
[1767859845197,0.84224636,3127.5,3126.8,0.002]
[1767859845391,0.84224636,3127.3,3126.8,0.002]
[1767859845623,0.40395874,3127.4,3126.8,0.002]
[1767859846124,0.8554743,3127.3,3126.8,0.002]
[1767859847685,0.88146055,3127.8,3126.8,1.42361337]
[1767859848110,0.001,3127.3,3126.8,0.002]
[1767859848314,0.88246055,3127.3,3126.8,0.002]
[1767859852346,0.88246055,3127.3,3126.5,0.002]
[1767859852799,0.94390543,3127.1,3126.5,0.002]
[1767859853614,0.94190543,3127.1,3126.5,0.002]
[1767859855437,0.96688506,3127.3,3126.6,1.42161337]
[1767859855826,0.96688506,3127.3,3126.5,0.002]
[1767859856237,0.96688506,3127.3,3126.5,1.42361337]
[1767859857573,4.19863572,3127.2,3126.5,1.42361337]
[1767859857756,0.41996357,3127.1,3126.5,1.42361337]
[1767859859067,1.00088694,3127.2,3126.5,1.42361337]
[1767859859238,1.00088694,3127.2,3126.5,0.002]
[1767859859560,1.00088694,3127.2,3126.8,0.002]
[1767859859767,1.02453786,3127.0,3126.8,0.002]
[1767859860332,1.02453786,3127.0,3126.5,0.002]
[1767859861262,0.001,3127.0,3126.5,1.74387593]
[1767859861972,0.001,3127.3,3126.9,1.42161337]
[1767859862165,3.19685707,3128.1,3126.9,1.42161337]
[1767859862166,1.05650942,3128.1,3126.9,1.42161337]
[1767859862367,1.05650942,3128.3,3126.9,1.42161337]
[1767859864354,1.07789848,3128.2,3127.1,1.39859779]
[1767859864557,1.07789848,3128.1,3127.2,2.17804823]
[1767859866541,1.07789848,3128.1,3127.3,3.19764653]
[1767859868066,1.07789848,3128.1,3127.3,4.69670006]
[1767859868263,1.12927809,3128.4,3127.4,1.49905353]
[1767859868451,1.12927809,3128.4,3127.6,1.49905353]
[1767859868766,5.013905,3128.3,3127.6,4.6963755]
[1767859868966,1.13918377,3128.2,3127.6,4.6963755]
[1767859869754,1.13918377,3128.2,3127.6,1.49905353]
[1767859869943,5.013905,3127.9,3127.3,1.49905353]
[1767859870143,5.013905,3127.9,3127.4,1.49905353]
[1767859870875,5.013905,3127.9,3127.4,4.69658741]
[1767859871569,5.011905,3127.9,3127.4,4.69658741]
[1767859871992,6.16287968,3128.1,3127.5,1.49905353]
[1767859872149,6.8293067,3128.1,3127.5,1.49905353]
[1767859872351,5.013905,3128.4,3127.5,1.49905353]
[1767859872653,0.001,3128.0,3127.6,3.19733981]
[1767859872847,0.001,3128.0,3127.7,1.49905353]
[1767859875682,0.001,3128.0,3127.7,4.69628243]
[1767859876263,0.001,3128.0,3127.7,1.49905353]
[1767859876982,0.001,3128.0,3127.7,4.69628535]
[1767859882297,0.001,3128.0,3127.8,1.49905353]
[1767859884370,0.001,3128.0,3127.9,4.69608668]
[1767859886385,0.001,3128.0,3127.9,1.49905353]
[1767859886564,0.001,3128.0,3127.9,4.69608668]
[1767859888269,0.001,3128.0,3127.9,1.49905353]
[1767859890172,0.001,3128.0,3127.9,4.69608668]
[1767859891887,0.001,3128.0,3127.9,1.49905353]
[1767859892187,0.001,3128.0,3127.9,4.69608668]
[1767859892762,0.001,3128.0,3127.9,1.49905353]
[1767859893358,0.001,3128.0,3127.6,1.60920069]
[1767859893893,0.001,3128.0,3127.9,1.60920069]
[1767859894989,0.001,3128.0,3127.9,4.80623384]
[1767859895487,5.013905,3128.9,3128.0,1.60920069]
[1767859895661,8.20992429,3128.9,3128.0,1.60920069]
[1767859895868,9.58473035,3128.9,3128.0,1.60920069]
[1767859896056,1.37480606,3128.8,3128.0,1.60920069]
[1767859896567,6.39578982,3128.7,3128.0,1.60920069]
[1767859896893,0.63957898,3128.6,3128.0,1.60920069]
[1767859898094,0.63957898,3128.6,3128.0,4.80611784]
[1767859898272,1.38888145,3128.9,3128.1,1.60920069]
[1767859899366,1.39578292,3128.8,3128.1,1.60920069]
[1767859901662,9.60583107,3128.8,3128.1,1.60920069]
[1767859903404,1.41308533,3128.7,3128.1,1.60920069]
[1767859903698,5.013905,3128.3,3127.7,1.60920069]
[1767859903900,5.013905,3128.1,3127.5,4.80659859]
[1767859904098,5.013905,3128.1,3127.5,1.60920069]
[1767859904796,1.48409875,3128.2,3127.6,1.60920069]
[1767859905103,2.13389913,3128.2,3127.6,1.60920069]
[1767859906704,1.48409875,3128.2,3127.6,1.60920069]
[1767859907578,1.48409875,3128.2,3127.9,0.002]
[1767859908186,1.49758265,3128.9,3127.9,1.61120069]
[1767859908384,1.49758265,3129.1,3127.9,1.61120069]
[1767859908571,0.002,3129.2,3128.4,1.60920069]
[1767859910796,0.002,3129.2,3128.6,1.60920069]
[1767859912912,0.002,3129.2,3128.8,1.60920069]
[1767859913601,0.002,3129.5,3129.2,1.60920069]
[1767859923092,0.002,3129.5,3129.3,1.66405744]
[1767859923525,1.54572477,3130.4,3129.3,1.83046318]
[1767859924590,1.55111733,3130.6,3129.3,1.83046318]
[1767859924827,0.002,3130.8,3129.6,1.66405744]
[1767859925014,0.002,3130.8,3130.0,1.66405744]
[1767859927212,0.002,3130.8,3129.9,6.3899805]
[1767859927213,0.002,3130.8,3130.2,1.66405744]
[1767859928624,1.5635557,3131.1,3130.3,1.66405744]
[1767859928827,1.5635557,3131.1,3130.2,5.01464327]
[1767859928828,1.5635557,3131.1,3130.5,1.66405744]
[1767859929029,1.5635557,3131.1,3130.4,0.66787007]
[1767859929190,1.5635557,3131.1,3130.3,1.66405744]
[1767859930596,1.5635557,3131.1,3130.4,3.19447993]
[1767859933915,0.002,3131.1,3130.5,1.72773326]
[1767859935049,1.58066917,3131.1,3130.5,1.72773326]
[1767859935201,1.57866917,3131.0,3130.1,1.72773326]
[1767859935551,1.57866917,3131.0,3130.2,1.72773326]
[1767859935552,2.23820041,3131.0,3130.2,1.72773326]
[1767859936021,2.23820041,3131.0,3130.3,1.72773326]
[1767859936219,0.002,3131.1,3130.5,1.72773326]
[1767859938600,0.002,3131.1,3130.6,1.72773326]
[1767859940735,1.59225254,3131.0,3130.4,1.72773326]
[1767859941032,1.59225254,3131.0,3130.2,4.92239682]
[1767859941237,2.25314212,3131.0,3130.3,1.72773326]
[1767859941411,1.59225254,3131.0,3130.3,1.72773326]
[1767859942535,1.59225254,3131.0,3130.1,1.72773326]
[1767859942536,1.59442887,3130.9,3130.1,1.72773326]
[1767859943037,1.59856481,3130.8,3130.1,1.72773326]
[1767859945849,8.21044074,3131.1,3130.1,1.72773326]
[1767859945850,0.002,3131.1,3130.7,1.72773326]
[1767859946027,0.321562,3131.1,3130.7,1.72773326]
[1767859946233,0.002,3131.1,3130.7,1.72773326]
[1767859949051,1.61095129,3131.1,3130.4,1.72773326]
[1767859949227,4.80472022,3131.1,3130.4,1.72773326]
[1767859949849,1.61093679,3131.0,3130.2,4.9223825]
[1767859950045,1.61093679,3130.9,3130.2,1.72773326]
[1767859950239,1.61093679,3130.8,3130.2,1.72773326]
[1767859951858,1.61093679,3130.8,3130.2,4.92241614]
[1767859952452,1.61674162,3131.0,3130.3,1.74610895]
[1767859954233,4.8106747,3131.0,3130.3,1.74610895]
[1767859954435,1.62049944,3130.9,3129.9,1.74610895]
[1767859954636,1.62235443,3130.8,3130.1,1.74610895]
[1767859954836,1.62235443,3130.8,3130.5,0.001]
[1767859955042,1.62435443,3130.8,3130.5,0.001]
[1767859956161,1.62435443,3130.8,3130.5,1.74710895]
[1767859956162,0.002,3130.8,3130.5,1.74710895]
[1767859956369,0.002,3130.8,3130.6,1.74610895]